[Event "MČR v rapid šachu družstev 2019"]
[Site "Teplice, Czech Republic"]
[Date "2019.09.15"]
[Round "1.20"]
[White "Benes, Petr"]
[Black "Smid, Pavel"]
[Result "0-1"]
[TimeControl "15 min. + 5s"]
[WhiteElo "2147"]
[BlackElo "1634"]

1. g3 {[%clk 00:15:07]} {[%emt 00:00:02]} c5 {[%clk 00:15:03]} {[%emt
00:00:08]} 2. Bg2 {[%clk 00:15:05]} {[%emt 00:00:06]} Nc6 {[%clk 00:15:02]}
{[%emt 00:00:06]} 3. c4 {[%clk 00:14:51]} {[%emt 00:00:20]} Nf6 {[%clk
00:14:59]} {[%emt 00:00:08]} 4. Nc3 {[%emt 00:00:12]} e6 {[%clk 00:14:30]}
{[%emt 00:00:32]} 5. Nf3 {[%clk 00:14:34]} {[%emt 00:00:17]} Be7 {[%clk
00:14:17]} {[%emt 00:00:17]} 6. O-O {[%clk 00:14:20]} {[%emt 00:00:20]} b6
{[%clk 00:14:03]} {[%emt 00:00:19]} 7. d4 {[%clk 00:14:04]} {[%emt 00:00:21]}
cxd4 {[%clk 00:13:11]} {[%emt 00:00:57]} 8. Nxd4 {[%clk 00:13:55]} {[%emt
00:00:13]} Bb7 {[%clk 00:12:39]} {[%emt 00:00:37]} 9. Ndb5 {[%clk 00:12:10]}
{[%emt 00:01:51]} Qb8 {[%clk 00:10:35]} {[%emt 00:02:09]} 10. Bf4 {[%clk
00:12:10]} {[%emt 00:00:05]} e5 {[%clk 00:10:26]} {[%emt 00:00:14]} 11. Bg5
{[%clk 00:11:18]} {[%emt 00:00:57]} a6 {[%clk 00:08:45]} {[%emt 00:01:45]} 12.
Na3 {[%clk 00:11:15]} {[%emt 00:00:08]} Nd4 {[%clk 00:07:46]} {[%emt 00:01:05]}
13. Bxf6 {[%clk 00:10:05]} {[%emt 00:01:15]} Bxg2 {[%clk 00:06:20]} {[%emt
00:01:30]} 14. Kxg2 {[%clk 00:10:07]} {[%emt 00:00:04]} gxf6 {[%clk 00:05:50]}
{[%emt 00:00:36]} 15. Nc2 {[%clk 00:09:33]} {[%emt 00:00:38]} Qb7+ {[%clk
00:05:13]} {[%emt 00:00:41]} 16. Nd5 {[%clk 00:09:09]} {[%emt 00:00:29]} Nf5
{[%clk 00:04:18]} {[%emt 00:01:01]} 17. e4 {[%clk 00:09:00]} {[%emt 00:00:14]}
Nd6 {[%clk 00:03:44]} {[%emt 00:00:39]} 18. Nce3 {[%clk 00:08:24]} {[%emt
00:00:41]} Nxe4 {[%clk 00:03:14]} {[%emt 00:00:35]} 19. Qf3 {[%clk 00:08:22]}
{[%emt 00:00:07]} Nc5 {[%clk 00:02:46]} {[%emt 00:00:33]} 20. b4 {[%clk
00:08:13]} {[%emt 00:00:15]} e4 {[%clk 00:02:23]} {[%emt 00:00:28]} 21. Qf4
{[%clk 00:08:10]} {[%emt 00:00:07]} Ne6 {[%clk 00:02:11]} {[%emt 00:00:17]} 22.
Qxe4 {[%clk 00:08:07]} {[%emt 00:00:07]} Qc6 {[%clk 00:01:54]} {[%emt
00:00:22]} 23. b5 {[%clk 00:07:49]} {[%emt 00:00:24]} axb5 {[%clk 00:01:39]}
{[%emt 00:00:20]} 24. cxb5 {[%clk 00:07:53]} {[%emt 00:00:01]} Qxb5 {[%clk
00:01:32]} {[%emt 00:00:12]} 25. Nf5 {[%clk 00:05:41]} {[%emt 00:02:17]} Ra4
{[%clk 00:01:02]} {[%emt 00:00:34]} 26. Nc7+ {[%clk 00:04:15]} {[%emt
00:01:31]} Kf8 {[%clk 00:00:25]} {[%emt 00:00:43]} 27. Nxb5 {[%clk 00:03:47]}
{[%emt 00:00:33]} Rxe4 {[%clk 00:00:29]} 28. Rfd1 {[%clk 00:02:17]} {[%emt
00:01:35]} Re5 {[%clk 00:00:12]} {[%emt 00:00:23]} 29. Nbd4 {[%clk 00:02:06]}
{[%emt 00:00:15]} Bc5 {[%clk 00:00:09]} {[%emt 00:00:08]} 30. Nxe6+ {[%clk
00:02:02]} {[%emt 00:00:09]} fxe6 {[%clk 00:00:13]} {[%emt 00:00:01]} 31. Nd4
{[%clk 00:01:39]} {[%emt 00:00:28]} Ke7 {[%clk 00:00:15]} {[%emt 00:00:03]} 32.
Nb3 {[%clk 00:01:15]} {[%emt 00:00:29]} Ra8 {[%clk 00:00:15]} {[%emt 00:00:04]}
33. Rd2 {[%clk 00:01:12]} {[%emt 00:00:09]} Bb4 {[%clk 00:00:16]} {[%emt
00:00:04]} 34. Rc2 {[%clk 00:01:12]} {[%emt 00:00:06]} Rd5 {[%clk 00:00:16]}
{[%emt 00:00:04]} 35. Rac1 {[%clk 00:00:52]} {[%emt 00:00:25]} Rd3 {[%clk
00:00:11]} {[%emt 00:00:09]} 36. Rc4 {[%clk 00:00:51]} {[%emt 00:00:07]} Bd2
{[%clk 00:00:13]} {[%emt 00:00:03]} 37. R1c2 {[%clk 00:00:54]} Bg5 {[%clk
00:00:14]} {[%emt 00:00:05]} 38. h4 {[%clk 00:00:54]} {[%emt 00:00:06]} Bh6
{[%emt 00:00:08]} 39. Rb4 {[%clk 00:00:50]} Rd6 {[%clk 00:00:15]} {[%emt
00:00:08]} 40. Rb5 {[%clk 00:00:43]} {[%emt 00:00:12]} Bg7 {[%clk 00:00:17]}
{[%emt 00:00:03]} 41. Nd2 {[%clk 00:00:41]} {[%emt 00:00:07]} f5 {[%clk
00:00:20]} {[%emt 00:00:02]} 42. Nc4 {[%clk 00:00:43]} {[%emt 00:00:02]} Rc6
{[%clk 00:00:24]} {[%emt 00:00:02]} 43. Rb4 {[%clk 00:00:37]} {[%emt 00:00:11]}
Rac8 {[%clk 00:00:25]} {[%emt 00:00:04]} 44. a4 {[%clk 00:00:31]} {[%emt
00:00:11]} Bd4 {[%clk 00:00:28]} {[%emt 00:00:02]} 45. Kf3 {[%clk 00:00:34]}
{[%emt 00:00:02]} Bc5 {[%clk 00:00:31]} {[%emt 00:00:02]} 46. Rb5 {[%clk
00:00:37]} {[%emt 00:00:02]} Bd6 {[%clk 00:00:33]} {[%emt 00:00:03]} 47. Nxd6
{[%clk 00:00:38]} {[%emt 00:00:04]} Kxd6 {[%clk 00:00:36]} {[%emt 00:00:01]} 48.
Rd2+ {[%clk 00:00:33]} {[%emt 00:00:11]} Ke7 {[%clk 00:00:39]} {[%emt
00:00:02]} 49. Rdb2 {[%clk 00:00:32]} {[%emt 00:00:05]} Rb8 {[%clk 00:00:41]}
{[%emt 00:00:04]} 50. a5 {[%clk 00:00:36]} {[%emt 00:00:02]} Rc3+ {[%clk
00:00:44]} {[%emt 00:00:02]} 51. Kg2 {[%clk 00:00:40]} Rc6 {[%clk 00:00:44]}
{[%emt 00:00:05]} 52. axb6 {[%clk 00:00:40]} {[%emt 00:00:05]} Kd8 {[%clk
00:00:48]} {[%emt 00:00:01]} 53. Kf3 {[%clk 00:00:41]} {[%emt 00:00:04]} d6
{[%clk 00:00:45]} {[%emt 00:00:08]} 54. Kf4 {[%clk 00:00:45]} {[%emt 00:00:02]}
Rb7 {[%clk 00:00:46]} {[%emt 00:00:04]} 55. Kg5 {[%clk 00:00:47]} {[%emt
00:00:03]} Ke8 {[%clk 00:00:46]} {[%emt 00:00:04]} 56. Kf6 {[%clk 00:00:42]}
{[%emt 00:00:10]} d5 {[%clk 00:00:49]} {[%emt 00:00:02]} 57. Ke5 {[%clk
00:00:41]} {[%emt 00:00:05]} Kd7 {[%clk 00:00:52]} {[%emt 00:00:02]} 58. h5
{[%clk 00:00:44]} {[%emt 00:00:03]} Ke7 {[%clk 00:00:51]} {[%emt 00:00:05]} 59.
R2b4 {[%clk 00:00:44]} {[%emt 00:00:05]} Kd7 {[%clk 00:00:53]} {[%emt
00:00:04]} 60. g4 {[%clk 00:00:48]} {[%emt 00:00:02]} fxg4 {[%clk 00:00:56]}
{[%emt 00:00:01]} 61. Rxg4 {[%clk 00:00:52]} Rbxb6 {[%clk 00:00:59]} {[%emt
00:00:02]} 62. Rg7+ {[%clk 00:00:51]} {[%emt 00:00:06]} Ke8 {[%clk 00:01:03]}
{[%emt 00:00:02]} 63. Rxb6 {[%clk 00:00:52]} {[%emt 00:00:03]} Rxb6 {[%clk
00:01:07]} {[%emt 00:00:01]} 64. Rxh7 {[%clk 00:00:56]} Kf8 {[%clk 00:01:10]}
{[%emt 00:00:02]} 65. Rh6 {[%clk 00:00:55]} {[%emt 00:00:07]} Kg7 {[%clk
00:01:09]} {[%emt 00:00:05]} 66. Rg6+ {[%clk 00:00:57]} {[%emt 00:00:03]} Kh7
{[%clk 00:01:09]} {[%emt 00:00:04]} 67. Rf6 {[%clk 00:00:55]} {[%emt 00:00:08]}
Rb2 {[%clk 00:01:01]} {[%emt 00:00:13]} 68. Rf4 {[%clk 00:00:25]} {[%emt
00:00:35]} Re2+ {[%clk 00:01:01]} {[%emt 00:00:04]} 69. Kd6 {[%clk 00:00:27]}
{[%emt 00:00:04]} e5 {[%emt 00:00:06]} 70. Rf5 d4 {[%emt 00:00:07]} 71. f4
{[%emt 00:00:19]} d3 {[%clk 00:00:57]} {[%emt 00:00:03]} 0-1

[Event "MČR v rapid šachu družstev 2019"]
[Site "Teplice, Czech Republic"]
[Date "2019.09.15"]
[Round "1.21"]
[White "Krejci, Jan"]
[Black "Starek, Stanislav"]
[Result "1-0"]
[TimeControl "15 min. + 5s"]
[WhiteElo "2496"]
[BlackElo "2098"]

1. c4 {[%clk 00:15:08]} {[%emt 00:00:01]} d5 {[%clk 00:15:09]} {[%emt
00:00:02]} 2. cxd5 {[%clk 00:15:08]} {[%emt 00:00:05]} c6 {[%clk 00:15:14]} 3.
dxc6 {[%clk 00:14:29]} {[%emt 00:00:44]} Nxc6 {[%clk 00:15:18]} 4. Nf3 {[%clk
00:13:38]} {[%emt 00:00:56]} e5 {[%clk 00:15:21]} {[%emt 00:00:02]} 5. d3
{[%clk 00:13:33]} {[%emt 00:00:09]} Nf6 {[%clk 00:15:24]} {[%emt 00:00:02]} 6.
e3 {[%clk 00:13:15]} {[%emt 00:00:23]} Bf5 {[%clk 00:15:15]} {[%emt 00:00:14]}
7. Be2 {[%clk 00:12:56]} {[%emt 00:00:24]} Be7 {[%clk 00:15:19]} {[%emt
00:00:02]} 8. O-O {[%clk 00:12:45]} {[%emt 00:00:16]} O-O {[%clk 00:15:22]} 9.
a3 {[%clk 00:12:45]} {[%emt 00:00:06]} Qd7 {[%clk 00:15:22]} {[%emt 00:00:04]}
10. b4 {[%clk 00:12:43]} {[%emt 00:00:08]} Rad8 {[%clk 00:14:37]} {[%emt
00:00:50]} 11. Bb2 {[%clk 00:11:54]} {[%emt 00:00:54]} e4 {[%clk 00:13:34]}
{[%emt 00:01:07]} 12. dxe4 {[%clk 00:11:33]} {[%emt 00:00:26]} Qc7 {[%clk
00:13:08]} {[%emt 00:00:27]} 13. Qc1 {[%clk 00:11:06]} {[%emt 00:00:32]} Nxe4
{[%clk 00:11:36]} {[%emt 00:01:42]} 14. Nc3 {[%clk 00:11:02]} {[%emt 00:00:08]}
Nxc3 {[%clk 00:10:15]} {[%emt 00:01:26]} 15. Bxc3 {[%clk 00:10:59]} {[%emt
00:00:08]} Bd6 {[%clk 00:10:02]} {[%emt 00:00:18]} 16. Qb2 {[%clk 00:10:36]}
{[%emt 00:00:28]} f6 {[%clk 00:09:29]} {[%emt 00:00:39]} 17. Rac1 {[%clk
00:10:31]} {[%emt 00:00:04]} Qe7 {[%clk 00:09:29]} {[%emt 00:00:05]} 18. Rfd1
{[%clk 00:09:37]} {[%emt 00:01:04]} Rfe8 {[%clk 00:09:23]} {[%emt 00:00:11]} 19.
Bc4+ {[%clk 00:08:14]} {[%emt 00:01:28]} Kh8 {[%clk 00:09:20]} {[%emt
00:00:09]} 20. Bd5 {[%clk 00:08:18]} {[%emt 00:00:01]} Bg4 {[%clk 00:09:08]}
{[%emt 00:00:17]} 21. h3 {[%clk 00:08:17]} {[%emt 00:00:06]} Bh5 {[%clk
00:09:07]} {[%emt 00:00:06]} 22. Rd2 {[%clk 00:07:49]} {[%emt 00:00:32]} a6
{[%clk 00:08:58]} {[%emt 00:00:14]} 23. Nh4 {[%clk 00:07:07]} {[%emt 00:00:47]}
Be5 {[%clk 00:06:54]} {[%emt 00:02:10]} 24. Nf5 {[%clk 00:05:54]} {[%emt
00:01:17]} Qd7 {[%clk 00:06:24]} {[%emt 00:00:36]} 25. Bxc6 {[%clk 00:05:54]}
{[%emt 00:00:05]} Qxd2 {[%clk 00:05:16]} {[%emt 00:01:12]} 26. Qxd2 {[%clk
00:05:54]} {[%emt 00:00:05]} Rxd2 {[%emt 00:00:02]} 27. Bxe8 {[%clk 00:05:31]}
{[%emt 00:00:28]} Bxc3 {[%clk 00:05:03]} {[%emt 00:00:21]} 28. Bxh5 {[%clk
00:05:27]} {[%emt 00:00:09]} Bb2 {[%clk 00:04:59]} {[%emt 00:00:10]} 29. Rc8+
{[%emt 00:00:02]} 1-0

[Event "MČR v rapid šachu družstev 2019"]
[Site "Teplice, Czech Republic"]
[Date "2019.09.15"]
[Round "1.22"]
[White "Nemec, Jachym"]
[Black "Sorm, Daniel"]
[Result "0-1"]
[TimeControl "15 min. + 5s"]
[WhiteElo "1955"]
[BlackElo "2313"]

1. e4 {[%clk 00:15:05]} {[%emt 00:00:05]} c5 {[%clk 00:15:08]} {[%emt
00:00:03]} 2. Nf3 {[%clk 00:15:04]} {[%emt 00:00:06]} Nc6 {[%clk 00:15:12]} 3.
d4 {[%clk 00:15:02]} {[%emt 00:00:07]} cxd4 {[%clk 00:15:15]} {[%emt 00:00:02]}
4. Nxd4 {[%clk 00:15:01]} {[%emt 00:00:05]} Nf6 {[%clk 00:15:02]} {[%emt
00:00:18]} 5. Nc3 {[%clk 00:14:56]} {[%emt 00:00:11]} d6 {[%clk 00:15:05]}
{[%emt 00:00:01]} 6. Bg5 {[%clk 00:14:14]} {[%emt 00:00:47]} e6 {[%clk
00:15:05]} {[%emt 00:00:06]} 7. f4 {[%clk 00:13:43]} {[%emt 00:00:36]} h6
{[%clk 00:13:59]} {[%emt 00:01:11]} 8. Bh4 {[%clk 00:12:26]} {[%emt 00:01:21]}
Be7 {[%clk 00:13:48]} {[%emt 00:00:16]} 9. Bf2 {[%clk 00:12:10]} {[%emt
00:00:22]} O-O {[%clk 00:12:50]} {[%emt 00:01:02]} 10. Nb3 {[%clk 00:11:32]}
{[%emt 00:00:43]} a6 {[%clk 00:11:27]} {[%emt 00:01:29]} 11. a4 {[%clk
00:11:32]} {[%emt 00:00:04]} b6 {[%clk 00:11:14]} {[%emt 00:00:18]} 12. Be2
{[%clk 00:11:16]} {[%emt 00:00:22]} Bb7 {[%clk 00:11:10]} {[%emt 00:00:09]} 13.
Bf3 {[%clk 00:11:09]} {[%emt 00:00:11]} Nb4 {[%clk 00:09:37]} {[%emt 00:01:38]}
14. a5 {[%clk 00:10:04]} {[%emt 00:01:10]} b5 {[%clk 00:09:36]} {[%emt
00:00:06]} 15. Bb6 {[%clk 00:09:34]} {[%emt 00:00:36]} Qc8 {[%clk 00:09:19]}
{[%emt 00:00:21]} 16. O-O {[%clk 00:09:19]} {[%emt 00:00:21]} d5 {[%clk
00:08:28]} {[%emt 00:00:56]} 17. e5 {[%clk 00:08:48]} {[%emt 00:00:36]} Ne4
{[%clk 00:07:38]} {[%emt 00:00:54]} 18. Bd4 {[%clk 00:07:19]} {[%emt 00:01:34]}
f6 {[%clk 00:04:49]} {[%emt 00:02:54]} 19. Rc1 {[%clk 00:06:06]} {[%emt
00:01:19]} fxe5 {[%clk 00:04:46]} {[%emt 00:00:08]} 20. Bxe5 {[%clk 00:06:02]}
{[%emt 00:00:09]} Nxc3 {[%clk 00:04:36]} {[%emt 00:00:15]} 21. bxc3 {[%clk
00:05:43]} {[%emt 00:00:24]} Na2 {[%clk 00:04:10]} {[%emt 00:00:30]} 22. Ra1
{[%clk 00:05:44]} {[%emt 00:00:04]} Nxc3 {[%clk 00:03:58]} {[%emt 00:00:17]} 23.
Qd4 {[%clk 00:05:39]} {[%emt 00:00:11]} Bf6 {[%clk 00:03:39]} {[%emt 00:00:24]}
24. Nc5 {[%clk 00:05:27]} {[%emt 00:00:16]} Bxe5 {[%clk 00:03:11]} {[%emt
00:00:33]} 25. fxe5 {[%clk 00:05:31]} {[%emt 00:00:01]} Rxf3 {[%clk 00:02:55]}
{[%emt 00:00:22]} 26. Kh1 {[%clk 00:03:47]} {[%emt 00:01:49]} Rxf1+ {[%clk
00:02:47]} {[%emt 00:00:12]} 27. Rxf1 {[%clk 00:03:51]} {[%emt 00:00:01]} Ne4
{[%clk 00:02:48]} {[%emt 00:00:04]} 28. Nd3 {[%clk 00:03:27]} {[%emt 00:00:29]}
Qxc2 {[%clk 00:02:30]} {[%emt 00:00:24]} 29. Rc1 {[%clk 00:03:13]} {[%emt
00:00:19]} Qxd3 {[%clk 00:02:22]} {[%emt 00:00:12]} 0-1

[Event "MČR v rapid šachu družstev 2019"]
[Site "Teplice, Czech Republic"]
[Date "2019.09.15"]
[Round "1.23"]
[White "Strasil, Pavel"]
[Black "Smolik, Jachym"]
[Result "0-1"]
[TimeControl "15 min. + 5s"]
[WhiteElo "2097"]
[BlackElo "1471"]

1. d4 {[%clk 00:15:06]} {[%emt 00:00:02]} Nf6 {[%clk 00:15:08]} {[%emt
00:00:02]} 2. Nf3 {[%clk 00:15:04]} {[%emt 00:00:08]} e6 {[%clk 00:15:06]}
{[%emt 00:00:07]} 3. c4 {[%clk 00:15:06]} {[%emt 00:00:03]} Bb4+ {[%clk
00:15:04]} {[%emt 00:00:07]} 4. Bd2 {[%clk 00:15:06]} {[%emt 00:00:05]} Qe7
{[%clk 00:14:59]} {[%emt 00:00:10]} 5. Nc3 {[%clk 00:13:54]} {[%emt 00:01:17]}
O-O {[%clk 00:13:53]} {[%emt 00:01:12]} 6. Qc2 {[%clk 00:13:28]} {[%emt
00:00:30]} b6 {[%clk 00:13:31]} {[%emt 00:00:26]} 7. g3 {[%clk 00:12:53]}
{[%emt 00:00:41]} Bb7 {[%clk 00:13:08]} {[%emt 00:00:28]} 8. Bg2 {[%clk
00:12:53]} {[%emt 00:00:05]} d6 {[%clk 00:11:40]} {[%emt 00:01:33]} 9. O-O
{[%clk 00:12:52]} {[%emt 00:00:05]} Nbd7 {[%clk 00:11:19]} {[%emt 00:00:26]} 10.
Rfe1 {[%clk 00:12:29]} {[%emt 00:00:29]} Rad8 {[%clk 00:07:05]} {[%emt
00:04:19]} 11. a3 {[%clk 00:11:39]} {[%emt 00:00:56]} Bxc3 {[%clk 00:07:07]}
{[%emt 00:00:02]} 12. Bxc3 {[%clk 00:11:42]} {[%emt 00:00:02]} d5 {[%clk
00:06:46]} {[%emt 00:00:26]} 13. Ne5 {[%clk 00:09:24]} {[%emt 00:02:23]} Nxe5
{[%clk 00:06:02]} {[%emt 00:00:49]} 14. dxe5 {[%clk 00:09:26]} {[%emt
00:00:03]} Ne4 {[%clk 00:05:23]} {[%emt 00:00:44]} 15. Rad1 {[%clk 00:08:53]}
{[%emt 00:00:38]} Nxc3 {[%clk 00:05:00]} {[%emt 00:00:28]} 16. Qxc3 {[%clk
00:08:51]} {[%emt 00:00:07]} c5 {[%clk 00:04:58]} {[%emt 00:00:07]} 17. e3
{[%clk 00:07:31]} {[%emt 00:01:25]} Rd7 {[%clk 00:04:32]} {[%emt 00:00:31]} 18.
Rd2 {[%clk 00:07:33]} {[%emt 00:00:03]} Rfd8 {[%clk 00:04:23]} {[%emt
00:00:14]} 19. Red1 {[%clk 00:07:36]} {[%emt 00:00:02]} h6 {[%clk 00:03:50]}
{[%emt 00:00:38]} 20. f4 {[%clk 00:07:27]} {[%emt 00:00:14]} dxc4 {[%clk
00:02:21]} {[%emt 00:01:34]} 21. Rxd7 {[%clk 00:04:52]} {[%emt 00:02:41]} Rxd7
{[%clk 00:02:25]} 22. Rxd7 {[%clk 00:04:53]} {[%emt 00:00:03]} Qxd7 {[%clk
00:02:29]} 23. Bxb7 {[%clk 00:04:55]} {[%emt 00:00:03]} Qxb7 {[%clk 00:02:33]}
{[%emt 00:00:01]} 24. Qxc4 {[%clk 00:04:57]} {[%emt 00:00:03]} Qd7 {[%clk
00:02:35]} {[%emt 00:00:02]} 25. Qc2 {[%clk 00:04:43]} {[%emt 00:00:19]} a6
{[%clk 00:02:15]} {[%emt 00:00:26]} 26. Kf2 {[%clk 00:04:43]} {[%emt 00:00:05]}
Qd5 {[%clk 00:02:03]} {[%emt 00:00:16]} 27. Qe2 {[%clk 00:04:20]} {[%emt
00:00:29]} Qh1 {[%clk 00:01:36]} {[%emt 00:00:32]} 28. Qxa6 {[%clk 00:04:01]}
{[%emt 00:00:24]} Qxh2+ {[%clk 00:01:38]} {[%emt 00:00:03]} 29. Kf3 {[%clk
00:04:04]} {[%emt 00:00:01]} Qxb2 {[%clk 00:01:34]} {[%emt 00:00:10]} 30. Qa8+
{[%clk 00:04:01]} {[%emt 00:00:08]} Kh7 {[%clk 00:01:36]} {[%emt 00:00:02]} 31.
Qe4+ {[%clk 00:04:04]} {[%emt 00:00:03]} g6 {[%clk 00:01:38]} {[%emt 00:00:03]}
32. Qb7 {[%clk 00:03:58]} {[%emt 00:00:12]} Kg7 {[%clk 00:01:32]} {[%emt
00:00:09]} 33. Qe7 {[%clk 00:03:58]} {[%emt 00:00:06]} Qb5 {[%clk 00:01:09]}
{[%emt 00:00:26]} 34. Qf6+ {[%clk 00:03:58]} {[%emt 00:00:06]} Kg8 {[%clk
00:01:12]} {[%emt 00:00:02]} 35. Qd8+ {[%clk 00:04:02]} {[%emt 00:00:02]} Kh7
{[%clk 00:01:13]} {[%emt 00:00:02]} 36. Qc7 {[%clk 00:04:03]} {[%emt 00:00:06]}
Kg7 {[%clk 00:01:05]} {[%emt 00:00:13]} 37. Qe7 {[%clk 00:03:11]} {[%emt
00:00:57]} Qf1+ {[%clk 00:01:04]} {[%emt 00:00:06]} 38. Ke4 {[%clk 00:03:14]}
{[%emt 00:00:02]} Qg2+ {[%clk 00:00:51]} {[%emt 00:00:17]} 39. Kd3 {[%clk
00:03:17]} {[%emt 00:00:03]} Qd5+ {[%clk 00:00:39]} {[%emt 00:00:16]} 40. Ke2
{[%clk 00:03:12]} {[%emt 00:00:11]} c4 {[%clk 00:00:34]} {[%emt 00:00:10]} 41.
Qc7 {[%clk 00:02:31]} {[%emt 00:00:46]} b5 {[%clk 00:00:29]} {[%emt 00:00:10]}
42. Kf2 {[%clk 00:02:34]} {[%emt 00:00:02]} Qd2+ {[%clk 00:00:29]} {[%emt
00:00:04]} 43. Kf3 {[%clk 00:02:38]} c3 {[%clk 00:00:30]} {[%emt 00:00:06]} 44.
f5 {[%clk 00:01:58]} {[%emt 00:00:45]} gxf5 {[%clk 00:00:22]} {[%emt 00:00:13]}
45. Qe7 {[%clk 00:01:59]} {[%emt 00:00:04]} c2 {[%clk 00:00:17]} {[%emt
00:00:10]} 46. Qf6+ {[%clk 00:02:01]} {[%emt 00:00:03]} Kg8 {[%clk 00:00:20]}
{[%emt 00:00:01]} 47. Qxh6 {[%clk 00:02:00]} {[%emt 00:00:06]} Qd1+ {[%clk
00:00:12]} {[%emt 00:00:14]} 48. Kf2 {[%clk 00:01:58]} {[%emt 00:00:06]} Qg4
{[%clk 00:00:08]} {[%emt 00:00:09]} 49. Qh1 {[%clk 00:01:52]} {[%emt 00:00:11]}
Qc4 {[%clk 00:00:08]} {[%emt 00:00:06]} 50. Qa8+ {[%clk 00:01:48]} {[%emt
00:00:09]} Kg7 {[%clk 00:00:11]} {[%emt 00:00:02]} 51. Qd8 {[%clk 00:01:51]}
{[%emt 00:00:02]} Qg4 {[%clk 00:00:09]} {[%emt 00:00:06]} 52. Qc7 {[%clk
00:01:49]} {[%emt 00:00:07]} Qd1 {[%clk 00:00:09]} {[%emt 00:00:05]} 53. Qe7
{[%clk 00:01:25]} {[%emt 00:00:30]} c1=Q {[%clk 00:00:07]} {[%emt 00:00:07]} 54.
Qf6+ {[%emt 00:00:33]} 0-1

[Event "MČR v rapid šachu družstev 2019"]
[Site "Teplice, Czech Republic"]
[Date "2019.09.15"]
[Round "1.24"]
[White "Strnad, Michael"]
[Black "Krejci, Jan"]
[Result "0-1"]
[TimeControl "15 min. + 5s"]
[WhiteElo "1726"]
[BlackElo "2496"]

1. e4 {[%clk 00:15:08]} {[%emt 00:02:49]} e5 {[%clk 00:15:04]} {[%emt
00:00:07]} 2. Nf3 {[%clk 00:15:09]} {[%emt 00:00:04]} Nf6 {[%clk 00:15:02]}
{[%emt 00:00:06]} 3. Bc4 {[%clk 00:13:56]} {[%emt 00:01:18]} Nxe4 {[%clk
00:14:59]} {[%emt 00:00:08]} 4. Nc3 {[%clk 00:13:55]} {[%emt 00:00:06]} Nc6
{[%clk 00:14:58]} {[%emt 00:00:06]} 5. Nxe4 {[%clk 00:13:10]} {[%emt 00:00:51]}
d5 {[%clk 00:14:59]} {[%emt 00:00:04]} 6. Bb5 {[%clk 00:12:32]} {[%emt
00:00:43]} dxe4 {[%clk 00:15:00]} {[%emt 00:00:04]} 7. Nxe5 {[%clk 00:11:43]}
{[%emt 00:00:53]} Qg5 {[%clk 00:14:46]} {[%emt 00:00:20]} 8. d4 {[%clk
00:10:57]} {[%emt 00:00:50]} Qxg2 {[%clk 00:13:37]} {[%emt 00:01:14]} 9. Rf1
{[%clk 00:10:04]} {[%emt 00:00:58]} a6 {[%clk 00:12:05]} {[%emt 00:01:37]} 10.
Bxc6+ {[%clk 00:05:41]} {[%emt 00:04:30]} bxc6 {[%clk 00:12:07]} {[%emt
00:00:02]} 11. Qh5 {[%clk 00:03:36]} {[%emt 00:02:09]} g6 {[%clk 00:11:34]}
{[%emt 00:00:38]} 12. Nxg6 {[%clk 00:02:55]} {[%emt 00:00:47]} Bh3 {[%clk
00:08:39]} {[%emt 00:03:00]} 13. Qe5+ {[%clk 00:01:39]} {[%emt 00:01:20]} Kd7
{[%clk 00:08:29]} {[%emt 00:00:15]} 14. Nxh8 {[%clk 00:00:55]} {[%emt
00:00:49]} Qxf1+ {[%clk 00:08:27]} {[%emt 00:00:07]} 15. Kd2 {[%clk 00:00:56]}
{[%emt 00:00:04]} Bb4+ {[%clk 00:07:55]} {[%emt 00:00:37]} 16. Ke3 {[%clk
00:00:40]} {[%emt 00:00:21]} Qe1+ {[%clk 00:07:58]} {[%emt 00:00:02]} 17. Kf4
{[%clk 00:00:38]} {[%emt 00:00:08]} Bd6 {[%clk 00:07:44]} {[%emt 00:00:19]} 18.
Nxf7 {[%clk 00:00:30]} {[%emt 00:00:13]} Bxe5+ {[%clk 00:07:29]} {[%emt
00:00:19]} 19. Nxe5+ {[%clk 00:00:33]} {[%emt 00:00:02]} Ke6 {[%clk 00:07:23]}
{[%emt 00:00:11]} 20. Kg3 {[%clk 00:00:23]} {[%emt 00:00:16]} Qf1 {[%clk
00:07:11]} {[%emt 00:00:15]} 21. b3 {[%clk 00:00:15]} {[%emt 00:00:14]} Qg2+
{[%clk 00:07:02]} {[%emt 00:00:15]} 22. Kh4 {[%clk 00:00:15]} {[%emt 00:00:05]}
Qxf2+ {[%clk 00:06:58]} {[%emt 00:00:09]} 23. Kxh3 {[%clk 00:00:15]} {[%emt
00:00:04]} Qxd4 {[%clk 00:06:58]} {[%emt 00:00:05]} 24. Rb1 {[%clk 00:00:09]}
{[%emt 00:00:12]} Qxe5 {[%clk 00:07:00]} {[%emt 00:00:03]} 25. Bb2 {[%clk
00:00:11]} {[%emt 00:00:03]} Qf5+ {[%clk 00:07:01]} {[%emt 00:00:04]} 26. Kh4
{[%clk 00:00:12]} {[%emt 00:00:03]} Rg8 {[%clk 00:07:03]} {[%emt 00:00:04]} 0-1